{"text_format":"1","workbook":"xlsx","n_sheets":13,"sheets":["1","2","3","4","5","6","7","8","9","10","end","RATE","SPEC"],"not_rendered":{"charts":0,"images":0,"macros":1,"external_links":0,"defined_names":1,"comments":0,"pivot_tables":0},"unopened":[],"bounds":{"document_bytes":16777216,"sheet_cells":100000,"rows_first":2000,"rows_last":500,"rows_between":2000,"halvings":0,"cell_chars":16384,"cell_head_chars":4096},"cells_cut":0,"cells_raw":0,"read":"whole","date_system":"1900"}

{"sheet":"1","index":0,"n_rows":107,"n_cols":9,"rows_kept":107,"cut":false,"hidden":false,"merged":[]}
[]
[]
[]
[null,null,null,null,"USD","Курс USD ЦБ РФ",{"$f":"VLOOKUP(E4,RATE!B:E,4,FALSE)","v":75.537899999999993}]
[null,"Расчет",null,null,"EUR","Курс EUR ЦБ РФ",{"$f":"VLOOKUP(E5,RATE!B:E,4,FALSE)","v":89.225399999999993}]
["Start","Артикул","Наименование","Ед. изм.","Кол-во","Цена вход, руб без НДС","Сумма вход, руб без НДС","Шифр / Примечание","Произв / Пост"]
[1,"ВВГнг(А)-LS 3x1,5","Кабель силовой медный в ПВХ изоляции, LS-исполнения, нг-исполнения ВВГнг(А)-LS 3x1,5","м",8,35,{"$f":"E7*F7","v":280},"ПР.М.123876","Mat"]
[2,"tg-z-16","Труба гофр. ПВХ Plast с зондом d16мм (100м.) EKF PROxima","м",5,10,{"$f":"E8*F8","v":50},"ПР.М.123876","Ekf"]
[3,"51116","Держатель двухкомпонентный, д.16мм","шт",10,9,90,"ПР.М.123876","Dkc"]
[4,"plc-fl-ctsw-2.5x200","Хомут P6.6 стандартный (б), 2.5x200 (100шт) FlexLock PROxima","уп",1,77,77,"ПР.М.123876","Ekf"]
[5,"СЛБ-25","Саморез с прессшайбой 4,2х25 сверло","шт",44,2,88,"ПР.М.123876","Mat"]
[6,"plc-pg-25","Сальник PG25 IP54 (100 шт) d отв. 30 мм / d провод. 16-21 мм EKF PROxima","шт",4,45,180,"ПР.М.123876","Ekf"]
[7,47482,"Нак-к кольцевой НКИ 6,0- 6 (КВТ)","шт",4,5,20,"ПР.М.123876","Mat"]
[8,"ПуГВ 1х6 жз (ПВ3 6 жз)","ПуГВ 1x6 жз Провод гибкий многожильный с ПВХ изоляцией 6 мм2 желто-зеленый","м",2,45,90,"ПР.М.123876","Mat"]
[9,"1013038","PATG 2/15 Держатель маркировки проводника","шт",6,5,30,"ПР.М.123876","Phoenix"]
[10,"0808260","PABL 15X4 Маркировочные полосы","лист",4,950,3800,"ПР.М.123876","Phoenix"]
[11,"kn-t-16","Коннектор для гофрированной трубы (16мм.) (50шт.) Plast EKFPROxima","шт",7,22,154,"ПР.М.123876","Ekf"]
[12,"43Б25У134Н","Бирка У-134 квадратная","шт",6,2,12,"ПР.М.123876","Iek"]
[13,null,null,null,null,null,0]
[14,null,null,null,null,null,0]
[15,null,null,null,null,null,0]
[16,null,null,null,null,null,0]
[17,null,null,null,null,null,0]
[18,null,null,null,null,null,0]
[19,null,null,null,null,null,0]
[20,null,null,null,null,null,0]
[21,null,null,null,null,null,0]
[22,null,null,null,null,null,0]
[23,null,null,null,null,null,0]
[24,null,null,null,null,null,0]
[25,null,null,null,null,null,0]
[26,null,null,null,null,null,0]
[27,null,null,null,null,null,0]
[28,null,null,null,null,null,0]
[29,null,null,null,null,null,0]
[30,null,null,null,null,null,0]
[31,null,null,null,null,null,0]
[32,null,null,null,null,null,0]
[33,null,null,null,null,null,0]
[34,null,null,null,null,null,0]
[35,null,null,null,null,null,0]
[36,null,null,null,null,null,0]
[37,null,null,null,null,null,0]
[38,null,null,null,null,null,0]
[39,null,null,null,null,null,0]
[40,null,null,null,null,null,0]
[41,null,null,null,null,null,0]
[42,null,null,null,null,null,0]
[43,null,null,null,null,null,0]
[44,null,null,null,null,null,0]
[45,null,null,null,null,null,0]
[46,null,null,null,null,null,0]
[47,null,null,null,null,null,0]
[48,null,null,null,null,null,0]
[49,null,null,null,null,null,0]
[50,null,null,null,null,null,0]
[51,null,null,null,null,null,0]
[52,null,null,null,null,null,0]
[53,null,null,null,null,null,0]
[54,null,null,null,null,null,0]
[55,null,null,null,null,null,0]
[56,null,null,null,null,null,0]
[57,null,null,null,null,null,0]
[58,null,null,null,null,null,0]
[59,null,null,null,null,null,0]
[60,null,null,null,null,null,0]
[61,null,null,null,null,null,0]
[62,null,null,null,null,null,0]
[63,null,null,null,null,null,0]
[64,null,null,null,null,null,0]
[65,null,null,null,null,null,0]
[66,null,null,null,null,null,{"$f":"E72*F72","v":0}]
[67,null,null,null,null,null,0]
[68,null,null,null,null,null,0]
[69,null,null,null,null,null,0]
[70,null,null,null,null,null,0]
[71,null,null,null,null,null,0]
[72,null,null,null,null,null,0]
[73,null,null,null,null,null,0]
[74,null,null,null,null,null,0]
[75,null,null,null,null,null,0]
[76,null,null,null,null,null,0]
[77,null,null,null,null,null,0]
[78,null,null,null,null,null,0]
[79,null,null,null,null,null,0]
[80,null,null,null,null,null,0]
[81,null,null,null,null,null,0]
[82,null,null,null,null,null,0]
[83,null,null,null,null,null,0]
[84,null,null,null,null,null,0]
[85,null,null,null,null,null,0]
[86,null,null,null,null,null,0]
[87,null,null,null,null,null,0]
[88,null,null,null,null,null,0]
[89,null,null,null,null,null,0]
[90,null,null,null,null,null,0]
[91,null,null,null,null,null,0]
[92,null,null,null,null,null,0]
[93,null,null,null,null,null,0]
[94,null,null,null,null,null,0]
[95,null,null,null,null,null,0]
[96,null,null,null,null,null,0]
[97,null,null,null,null,null,0]
[98,null,null,null,null,null,0]
[99,null,null,null,null,null,0]
[100,null,null,null,null,null,0]
["End",null,"ИТОГО",null,null,null,{"$f":"SUM(G7:G106)","v":4871}]

{"sheet":"2","index":1,"n_rows":107,"n_cols":9,"rows_kept":107,"cut":false,"hidden":false,"merged":[]}
[]
[]
[]
[null,null,null,null,"USD","Курс USD ЦБ РФ",{"$f":"VLOOKUP(E4,RATE!B:E,4,FALSE)","v":75.537899999999993}]
[null,"Расчет",null,null,"EUR","Курс EUR ЦБ РФ",{"$f":"VLOOKUP(E5,RATE!B:E,4,FALSE)","v":89.225399999999993}]
["Start","Артикул","Наименование","Ед. изм.","Кол-во","Цена вход, руб без НДС","Сумма вход, руб без НДС","Шифр / Примечание","Произв / Пост"]
[1,"ВВГнг(А)-LS 3x1,5","Кабель силовой медный в ПВХ изоляции, LS-исполнения, нг-исполнения ВВГнг(А)-LS 3x1,5","м",7,35,{"$f":"E7*F7","v":245},"ПР.М.444444","Mat"]
[2,"tg-z-16","Труба гофр. ПВХ Plast с зондом d16мм (100м.) EKF PROxima","м",3,10,{"$f":"E8*F8","v":30},"ПР.М.444444","Ekf"]
[3,"51116","Держатель двухкомпонентный, д.16мм","шт",10,9,90,"ПР.М.444445","Dkc"]
[4,"plc-fl-ctsw-2.5x200","Хомут P6.6 стандартный (б), 2.5x200 (100шт) FlexLock PROxima","уп",1,77,77,"ПР.М.444446","Ekf"]
[5,"СЛБ-25","Саморез с прессшайбой 4,2х25 сверло","шт",30,2,60,"ПР.М.444447","Mat"]
[6,"plc-pg-25","Сальник PG25 IP54 (100 шт) d отв. 30 мм / d провод. 16-21 мм EKF PROxima","шт",2,45,90,"ПР.М.444448","Ekf"]
[7,47482,"Нак-к кольцевой НКИ 6,0- 6 (КВТ)","шт",4,5,20,"ПР.М.444449","Mat"]
[8,"ПуГВ 1х6 жз (ПВ3 6 жз)","ПуГВ 1x6 жз Провод гибкий многожильный с ПВХ изоляцией 6 мм2 желто-зеленый","м",5,45,225,"ПР.М.444450","Mat"]
[9,"1013038","PATG 2/15 Держатель маркировки проводника","шт",6,5,30,"ПР.М.444451","Phoenix"]
[10,"0808260","PABL 15X4 Маркировочные полосы","лист",3,950,2850,"ПР.М.444452","Phoenix"]
[11,"kn-t-16","Коннектор для гофрированной трубы (16мм.) (50шт.) Plast EKFPROxima","шт",7,22,154,"ПР.М.444453","Ekf"]
[12,"43Б25У134Н","Бирка У-134 квадратная","шт",3,2,6,"ПР.М.444454","Iek"]
[13,null,null,null,null,null,0]
[14,null,null,null,null,null,0]
[15,null,null,null,null,null,0]
[16,null,null,null,null,null,0]
[17,null,null,null,null,null,0]
[18,null,null,null,null,null,0]
[19,null,null,null,null,null,0]
[20,null,null,null,null,null,0]
[21,null,null,null,null,null,0]
[22,null,null,null,null,null,0]
[23,null,null,null,null,null,0]
[24,null,null,null,null,null,0]
[25,null,null,null,null,null,0]
[26,null,null,null,null,null,0]
[27,null,null,null,null,null,0]
[28,null,null,null,null,null,0]
[29,null,null,null,null,null,0]
[30,null,null,null,null,null,0]
[31,null,null,null,null,null,0]
[32,null,null,null,null,null,0]
[33,null,null,null,null,null,0]
[34,null,null,null,null,null,0]
[35,null,null,null,null,null,0]
[36,null,null,null,null,null,0]
[37,null,null,null,null,null,0]
[38,null,null,null,null,null,0]
[39,null,null,null,null,null,0]
[40,null,null,null,null,null,0]
[41,null,null,null,null,null,0]
[42,null,null,null,null,null,0]
[43,null,null,null,null,null,0]
[44,null,null,null,null,null,0]
[45,null,null,null,null,null,0]
[46,null,null,null,null,null,0]
[47,null,null,null,null,null,0]
[48,null,null,null,null,null,0]
[49,null,null,null,null,null,0]
[50,null,null,null,null,null,0]
[51,null,null,null,null,null,0]
[52,null,null,null,null,null,0]
[53,null,null,null,null,null,0]
[54,null,null,null,null,null,0]
[55,null,null,null,null,null,0]
[56,null,null,null,null,null,0]
[57,null,null,null,null,null,0]
[58,null,null,null,null,null,0]
[59,null,null,null,null,null,0]
[60,null,null,null,null,null,0]
[61,null,null,null,null,null,0]
[62,null,null,null,null,null,0]
[63,null,null,null,null,null,0]
[64,null,null,null,null,null,0]
[65,null,null,null,null,null,0]
[66,null,null,null,null,null,{"$f":"E72*F72","v":0}]
[67,null,null,null,null,null,0]
[68,null,null,null,null,null,0]
[69,null,null,null,null,null,0]
[70,null,null,null,null,null,0]
[71,null,null,null,null,null,0]
[72,null,null,null,null,null,0]
[73,null,null,null,null,null,0]
[74,null,null,null,null,null,0]
[75,null,null,null,null,null,0]
[76,null,null,null,null,null,0]
[77,null,null,null,null,null,0]
[78,null,null,null,null,null,0]
[79,null,null,null,null,null,0]
[80,null,null,null,null,null,0]
[81,null,null,null,null,null,0]
[82,null,null,null,null,null,0]
[83,null,null,null,null,null,0]
[84,null,null,null,null,null,0]
[85,null,null,null,null,null,0]
[86,null,null,null,null,null,0]
[87,null,null,null,null,null,0]
[88,null,null,null,null,null,0]
[89,null,null,null,null,null,0]
[90,null,null,null,null,null,0]
[91,null,null,null,null,null,0]
[92,null,null,null,null,null,0]
[93,null,null,null,null,null,0]
[94,null,null,null,null,null,{"$f":"E100*F100","v":0}]
[95,null,null,null,null,null,0]
[96,null,null,null,null,null,0]
[97,null,null,null,null,null,0]
[98,null,null,null,null,null,0]
[99,null,null,null,null,null,0]
[100,null,null,null,null,null,0]
["End",null,"ИТОГО",null,null,null,{"$f":"SUM(G7:G106)","v":3877}]

{"sheet":"3","index":2,"n_rows":107,"n_cols":9,"rows_kept":107,"cut":false,"hidden":false,"merged":[]}
[]
[]
[]
[null,null,null,null,"USD","Курс USD ЦБ РФ",{"$f":"VLOOKUP(E4,RATE!B:E,4,FALSE)","v":75.537899999999993}]
[null,"Расчет",null,null,"EUR","Курс EUR ЦБ РФ",{"$f":"VLOOKUP(E5,RATE!B:E,4,FALSE)","v":89.225399999999993}]
["Start","Артикул","Наименование","Ед. изм.","Кол-во","Цена вход, руб без НДС","Сумма вход, руб без НДС","Шифр / Примечание","Произв / Пост"]
[1,"ВВГнг(А)-LS 3x1,5","Кабель силовой медный в ПВХ изоляции, LS-исполнения, нг-исполнения ВВГнг(А)-LS 3x1,5","м",2,35,{"$f":"E7*F7","v":70},"ПР.М.44545454","Mat"]
[2,"tg-z-16","Труба гофр. ПВХ Plast с зондом d16мм (100м.) EKF PROxima","м",3,10,{"$f":"E8*F8","v":30},"ПР.М.44545454","Ekf"]
[3,"51116","Держатель двухкомпонентный, д.16мм","шт",10,9,90,"ПР.М.44545454","Dkc"]
[4,"plc-fl-ctsw-2.5x200","Хомут P6.6 стандартный (б), 2.5x200 (100шт) FlexLock PROxima","уп",1,77,77,"ПР.М.44545454","Ekf"]
[5,"СЛБ-25","Саморез с прессшайбой 4,2х25 сверло","шт",30,2,60,"ПР.М.44545454","Mat"]
[6,"plc-pg-25","Сальник PG25 IP54 (100 шт) d отв. 30 мм / d провод. 16-21 мм EKF PROxima","шт",4,45,180,"ПР.М.44545454","Ekf"]
[7,47482,"Нак-к кольцевой НКИ 6,0- 6 (КВТ)","шт",4,5,20,"ПР.М.44545454","Mat"]
[8,"ПуГВ 1х6 жз (ПВ3 6 жз)","ПуГВ 1x6 жз Провод гибкий многожильный с ПВХ изоляцией 6 мм2 желто-зеленый","м",2,45,90,"ПР.М.44545454","Mat"]
[9,"1013038","PATG 2/15 Держатель маркировки проводника","шт",6,5,30,"ПР.М.44545454","Phoenix"]
[10,"0808260","PABL 15X4 Маркировочные полосы","лист",6,950,5700,"ПР.М.44545454","Phoenix"]
[11,"kn-t-16","Коннектор для гофрированной трубы (16мм.) (50шт.) Plast EKFPROxima","шт",4,22,88,"ПР.М.44545454","Ekf"]
[12,"43Б25У134Н","Бирка У-134 квадратная","шт",13,2,26,"ПР.М.44545454","Iek"]
[13,null,null,null,null,null,0]
[14,null,null,null,null,null,0]
[15,null,null,null,null,null,0]
[16,null,null,null,null,null,0]
[17,null,null,null,null,null,0]
[18,null,null,null,null,null,0]
[19,null,null,null,null,null,0]
[20,null,null,null,null,null,0]
[21,null,null,null,null,null,0]
[22,null,null,null,null,null,0]
[23,null,null,null,null,null,0]
[24,null,null,null,null,null,0]
[25,null,null,null,null,null,0]
[26,null,null,null,null,null,0]
[27,null,null,null,null,null,0]
[28,null,null,null,null,null,0]
[29,null,null,null,null,null,0]
[30,null,null,null,null,null,0]
[31,null,null,null,null,null,0]
[32,null,null,null,null,null,0]
[33,null,null,null,null,null,0]
[34,null,null,null,null,null,0]
[35,null,null,null,null,null,0]
[36,null,null,null,null,null,0]
[37,null,null,null,null,null,0]
[38,null,null,null,null,null,0]
[39,null,null,null,null,null,0]
[40,null,null,null,null,null,0]
[41,null,null,null,null,null,0]
[42,null,null,null,null,null,0]
[43,null,null,null,null,null,0]
[44,null,null,null,null,null,0]
[45,null,null,null,null,null,0]
[46,null,null,null,null,null,0]
[47,null,null,null,null,null,0]
[48,null,null,null,null,null,0]
[49,null,null,null,null,null,0]
[50,null,null,null,null,null,0]
[51,null,null,null,null,null,0]
[52,null,null,null,null,null,0]
[53,null,null,null,null,null,0]
[54,null,null,null,null,null,0]
[55,null,null,null,null,null,0]
[56,null,null,null,null,null,0]
[57,null,null,null,null,null,0]
[58,null,null,null,null,null,0]
[59,null,null,null,null,null,0]
[60,null,null,null,null,null,0]
[61,null,null,null,null,null,0]
[62,null,null,null,null,null,0]
[63,null,null,null,null,null,0]
[64,null,null,null,null,null,0]
[65,null,null,null,null,null,0]
[66,null,null,null,null,null,{"$f":"E72*F72","v":0}]
[67,null,null,null,null,null,0]
[68,null,null,null,null,null,0]
[69,null,null,null,null,null,0]
[70,null,null,null,null,null,0]
[71,null,null,null,null,null,0]
[72,null,null,null,null,null,0]
[73,null,null,null,null,null,0]
[74,null,null,null,null,null,0]
[75,null,null,null,null,null,0]
[76,null,null,null,null,null,0]
[77,null,null,null,null,null,0]
[78,null,null,null,null,null,0]
[79,null,null,null,null,null,0]
[80,null,null,null,null,null,0]
[81,null,null,null,null,null,0]
[82,null,null,null,null,null,0]
[83,null,null,null,null,null,0]
[84,null,null,null,null,null,0]
[85,null,null,null,null,null,0]
[86,null,null,null,null,null,0]
[87,null,null,null,null,null,0]
[88,null,null,null,null,null,0]
[89,null,null,null,null,null,0]
[90,null,null,null,null,null,0]
[91,null,null,null,null,null,0]
[92,null,null,null,null,null,0]
[93,null,null,null,null,null,0]
[94,null,null,null,null,null,{"$f":"E100*F100","v":0}]
[95,null,null,null,null,null,0]
[96,null,null,null,null,null,0]
[97,null,null,null,null,null,0]
[98,null,null,null,null,null,0]
[99,null,null,null,null,null,0]
[100,null,null,null,null,null,0]
["End",null,"ИТОГО",null,null,null,{"$f":"SUM(G7:G106)","v":6461}]

{"sheet":"4","index":3,"n_rows":107,"n_cols":9,"rows_kept":107,"cut":false,"hidden":false,"merged":[]}
[]
[]
[]
[null,null,null,null,"USD","Курс USD ЦБ РФ",{"$f":"VLOOKUP(E4,RATE!B:E,4,FALSE)","v":75.537899999999993}]
[null,"Расчет",null,null,"EUR","Курс EUR ЦБ РФ",{"$f":"VLOOKUP(E5,RATE!B:E,4,FALSE)","v":89.225399999999993}]
["Start","Артикул","Наименование","Ед. изм.","Кол-во","Цена вход, руб без НДС","Сумма вход, руб без НДС","Шифр / Примечание","Произв / Пост"]
[1,"ВВГнг(А)-LS 3x1,5","Кабель силовой медный в ПВХ изоляции, LS-исполнения, нг-исполнения ВВГнг(А)-LS 3x1,5","м",7,35,{"$f":"E7*F7","v":245},"ПР.М.от.3434","Mat"]
[2,"tg-z-16","Труба гофр. ПВХ Plast с зондом d16мм (100м.) EKF PROxima","м",4,10,{"$f":"E8*F8","v":40},"ПР.М.от.3434","Ekf"]
[3,"51116","Держатель двухкомпонентный, д.16мм","шт",10,9,90,"ПР.М.от.3435","Dkc"]
[4,"plc-fl-ctsw-2.5x200","Хомут P6.6 стандартный (б), 2.5x200 (100шт) FlexLock PROxima","уп",1,77,77,"ПР.М.от.3436","Ekf"]
[5,"СЛБ-25","Саморез с прессшайбой 4,2х25 сверло","шт",30,2,60,"ПР.М.от.3437","Mat"]
[6,"plc-pg-25","Сальник PG25 IP54 (100 шт) d отв. 30 мм / d провод. 16-21 мм EKF PROxima","шт",2,45,90,"ПР.М.от.3438","Ekf"]
[7,47482,"Нак-к кольцевой НКИ 6,0- 6 (КВТ)","шт",4,5,20,"ПР.М.от.3439","Mat"]
[8,"ПуГВ 1х6 жз (ПВ3 6 жз)","ПуГВ 1x6 жз Провод гибкий многожильный с ПВХ изоляцией 6 мм2 желто-зеленый","м",112,45,5040,"ПР.М.от.3440","Mat"]
[9,"1013038","PATG 2/15 Держатель маркировки проводника","шт",44,5,220,"ПР.М.от.3441","Phoenix"]
[10,"0808260","PABL 15X4 Маркировочные полосы","лист",2,950,1900,"ПР.М.от.3442","Phoenix"]
[11,"kn-t-16","Коннектор для гофрированной трубы (16мм.) (50шт.) Plast EKFPROxima","шт",4,22,88,"ПР.М.от.3443","Ekf"]
[12,"43Б25У134Н","Бирка У-134 квадратная","шт",5,2,10,"ПР.М.от.3444","Iek"]
[13,null,null,null,null,null,0]
[14,null,null,null,null,null,0]
[15,null,null,null,null,null,0]
[16,null,null,null,null,null,0]
[17,null,null,null,null,null,0]
[18,null,null,null,null,null,0]
[19,null,null,null,null,null,0]
[20,null,null,null,null,null,0]
[21,null,null,null,null,null,0]
[22,null,null,null,null,null,0]
[23,null,null,null,null,null,0]
[24,null,null,null,null,null,0]
[25,null,null,null,null,null,0]
[26,null,null,null,null,null,0]
[27,null,null,null,null,null,0]
[28,null,null,null,null,null,0]
[29,null,null,null,null,null,0]
[30,null,null,null,null,null,0]
[31,null,null,null,null,null,0]
[32,null,null,null,null,null,0]
[33,null,null,null,null,null,0]
[34,null,null,null,null,null,0]
[35,null,null,null,null,null,0]
[36,null,null,null,null,null,0]
[37,null,null,null,null,null,0]
[38,null,null,null,null,null,0]
[39,null,null,null,null,null,0]
[40,null,null,null,null,null,0]
[41,null,null,null,null,null,0]
[42,null,null,null,null,null,0]
[43,null,null,null,null,null,0]
[44,null,null,null,null,null,0]
[45,null,null,null,null,null,0]
[46,null,null,null,null,null,0]
[47,null,null,null,null,null,0]
[48,null,null,null,null,null,0]
[49,null,null,null,null,null,0]
[50,null,null,null,null,null,0]
[51,null,null,null,null,null,0]
[52,null,null,null,null,null,0]
[53,null,null,null,null,null,0]
[54,null,null,null,null,null,0]
[55,null,null,null,null,null,0]
[56,null,null,null,null,null,0]
[57,null,null,null,null,null,0]
[58,null,null,null,null,null,0]
[59,null,null,null,null,null,0]
[60,null,null,null,null,null,0]
[61,null,null,null,null,null,0]
[62,null,null,null,null,null,0]
[63,null,null,null,null,null,0]
[64,null,null,null,null,null,0]
[65,null,null,null,null,null,0]
[66,null,null,null,null,null,{"$f":"E72*F72","v":0}]
[67,null,null,null,null,null,0]
[68,null,null,null,null,null,0]
[69,null,null,null,null,null,0]
[70,null,null,null,null,null,0]
[71,null,null,null,null,null,0]
[72,null,null,null,null,null,0]
[73,null,null,null,null,null,0]
[74,null,null,null,null,null,0]
[75,null,null,null,null,null,0]
[76,null,null,null,null,null,0]
[77,null,null,null,null,null,0]
[78,null,null,null,null,null,0]
[79,null,null,null,null,null,0]
[80,null,null,null,null,null,0]
[81,null,null,null,null,null,0]
[82,null,null,null,null,null,0]
[83,null,null,null,null,null,0]
[84,null,null,null,null,null,0]
[85,null,null,null,null,null,0]
[86,null,null,null,null,null,0]
[87,null,null,null,null,null,0]
[88,null,null,null,null,null,0]
[89,null,null,null,null,null,0]
[90,null,null,null,null,null,0]
[91,null,null,null,null,null,0]
[92,null,null,null,null,null,0]
[93,null,null,null,null,null,0]
[94,null,null,null,null,null,{"$f":"E100*F100","v":0}]
[95,null,null,null,null,null,0]
[96,null,null,null,null,null,0]
[97,null,null,null,null,null,0]
[98,null,null,null,null,null,0]
[99,null,null,null,null,null,0]
[100,null,null,null,null,null,0]
["End",null,"ИТОГО",null,null,null,{"$f":"SUM(G7:G106)","v":7880}]

{"sheet":"5","index":4,"n_rows":107,"n_cols":9,"rows_kept":107,"cut":false,"hidden":false,"merged":[]}
[]
[]
[]
[null,null,null,null,"USD","Курс USD ЦБ РФ",{"$f":"VLOOKUP(E4,RATE!B:E,4,FALSE)","v":75.537899999999993}]
[null,"Расчет",null,null,"EUR","Курс EUR ЦБ РФ",{"$f":"VLOOKUP(E5,RATE!B:E,4,FALSE)","v":89.225399999999993}]
["Start","Артикул","Наименование","Ед. изм.","Кол-во","Цена вход, руб без НДС","Сумма вход, руб без НДС","Шифр / Примечание","Произв / Пост"]
[1,"ВВГнг(А)-LS 3x1,5","Кабель силовой медный в ПВХ изоляции, LS-исполнения, нг-исполнения ВВГнг(А)-LS 3x1,5","м",8,35,{"$f":"E7*F7","v":280},"ПР.М.К656","Mat"]
[2,"tg-z-16","Труба гофр. ПВХ Plast с зондом d16мм (100м.) EKF PROxima","м",6,10,{"$f":"E8*F8","v":60},"ПР.М.К656","Ekf"]
[3,"51116","Держатель двухкомпонентный, д.16мм","шт",33,9,297,"ПР.М.К656","Dkc"]
[4,"plc-fl-ctsw-2.5x200","Хомут P6.6 стандартный (б), 2.5x200 (100шт) FlexLock PROxima","уп",1,77,77,"ПР.М.К656","Ekf"]
[5,"СЛБ-25","Саморез с прессшайбой 4,2х25 сверло","шт",66,2,132,"ПР.М.К656","Mat"]
[6,"plc-pg-25","Сальник PG25 IP54 (100 шт) d отв. 30 мм / d провод. 16-21 мм EKF PROxima","шт",2,45,90,"ПР.М.К656","Ekf"]
[7,47482,"Нак-к кольцевой НКИ 6,0- 6 (КВТ)","шт",4,5,20,"ПР.М.К656","Mat"]
[8,"ПуГВ 1х6 жз (ПВ3 6 жз)","ПуГВ 1x6 жз Провод гибкий многожильный с ПВХ изоляцией 6 мм2 желто-зеленый","м",2,45,90,"ПР.М.К656","Mat"]
[9,"1013038","PATG 2/15 Держатель маркировки проводника","шт",6,5,30,"ПР.М.К656","Phoenix"]
[10,"0808260","PABL 15X4 Маркировочные полосы","лист",3,950,2850,"ПР.М.К656","Phoenix"]
[11,"kn-t-16","Коннектор для гофрированной трубы (16мм.) (50шт.) Plast EKFPROxima","шт",5,22,110,"ПР.М.К656","Ekf"]
[12,"43Б25У134Н","Бирка У-134 квадратная","шт",2,2,4,"ПР.М.К656","Iek"]
[13,null,null,null,null,null,0]
[14,null,null,null,null,null,0]
[15,null,null,null,null,null,0]
[16,null,null,null,null,null,0]
[17,null,null,null,null,null,0]
[18,null,null,null,null,null,0]
[19,null,null,null,null,null,0]
[20,null,null,null,null,null,0]
[21,null,null,null,null,null,0]
[22,null,null,null,null,null,0]
[23,null,null,null,null,null,0]
[24,null,null,null,null,null,0]
[25,null,null,null,null,null,0]
[26,null,null,null,null,null,0]
[27,null,null,null,null,null,0]
[28,null,null,null,null,null,0]
[29,null,null,null,null,null,0]
[30,null,null,null,null,null,0]
[31,null,null,null,null,null,0]
[32,null,null,null,null,null,0]
[33,null,null,null,null,null,0]
[34,null,null,null,null,null,0]
[35,null,null,null,null,null,0]
[36,null,null,null,null,null,0]
[37,null,null,null,null,null,0]
[38,null,null,null,null,null,0]
[39,null,null,null,null,null,0]
[40,null,null,null,null,null,0]
[41,null,null,null,null,null,0]
[42,null,null,null,null,null,0]
[43,null,null,null,null,null,0]
[44,null,null,null,null,null,0]
[45,null,null,null,null,null,0]
[46,null,null,null,null,null,0]
[47,null,null,null,null,null,0]
[48,null,null,null,null,null,0]
[49,null,null,null,null,null,0]
[50,null,null,null,null,null,0]
[51,null,null,null,null,null,0]
[52,null,null,null,null,null,0]
[53,null,null,null,null,null,0]
[54,null,null,null,null,null,0]
[55,null,null,null,null,null,0]
[56,null,null,null,null,null,0]
[57,null,null,null,null,null,0]
[58,null,null,null,null,null,0]
[59,null,null,null,null,null,0]
[60,null,null,null,null,null,0]
[61,null,null,null,null,null,0]
[62,null,null,null,null,null,0]
[63,null,null,null,null,null,0]
[64,null,null,null,null,null,0]
[65,null,null,null,null,null,0]
[66,null,null,null,null,null,{"$f":"E72*F72","v":0}]
[67,null,null,null,null,null,0]
[68,null,null,null,null,null,0]
[69,null,null,null,null,null,0]
[70,null,null,null,null,null,0]
[71,null,null,null,null,null,0]
[72,null,null,null,null,null,0]
[73,null,null,null,null,null,0]
[74,null,null,null,null,null,0]
[75,null,null,null,null,null,0]
[76,null,null,null,null,null,0]
[77,null,null,null,null,null,0]
[78,null,null,null,null,null,0]
[79,null,null,null,null,null,0]
[80,null,null,null,null,null,0]
[81,null,null,null,null,null,0]
[82,null,null,null,null,null,0]
[83,null,null,null,null,null,0]
[84,null,null,null,null,null,0]
[85,null,null,null,null,null,0]
[86,null,null,null,null,null,0]
[87,null,null,null,null,null,0]
[88,null,null,null,null,null,0]
[89,null,null,null,null,null,0]
[90,null,null,null,null,null,0]
[91,null,null,null,null,null,0]
[92,null,null,null,null,null,0]
[93,null,null,null,null,null,0]
[94,null,null,null,null,null,{"$f":"E100*F100","v":0}]
[95,null,null,null,null,null,0]
[96,null,null,null,null,null,0]
[97,null,null,null,null,null,0]
[98,null,null,null,null,null,0]
[99,null,null,null,null,null,0]
[100,null,null,null,null,null,0]
["End",null,"ИТОГО",null,null,null,{"$f":"SUM(G7:G106)","v":4040}]

{"sheet":"6","index":5,"n_rows":107,"n_cols":9,"rows_kept":107,"cut":false,"hidden":false,"merged":[]}
[]
[]
[]
[null,null,null,null,"USD","Курс USD ЦБ РФ",{"$f":"VLOOKUP(E4,RATE!B:E,4,FALSE)","v":75.537899999999993}]
[null,"Расчет",null,null,"EUR","Курс EUR ЦБ РФ",{"$f":"VLOOKUP(E5,RATE!B:E,4,FALSE)","v":89.225399999999993}]
["Start","Артикул","Наименование","Ед. изм.","Кол-во","Цена вход, руб без НДС","Сумма вход, руб без НДС","Шифр / Примечание","Произв / Пост"]
[1,"ВВГнг(А)-LS 3x1,5","Кабель силовой медный в ПВХ изоляции, LS-исполнения, нг-исполнения ВВГнг(А)-LS 3x1,5","м",8,35,{"$f":"E7*F7","v":280},"ПР.М.4455000","Mat"]
[2,"tg-z-16","Труба гофр. ПВХ Plast с зондом d16мм (100м.) EKF PROxima","м",5,10,{"$f":"E8*F8","v":50},"ПР.М.4455000","Ekf"]
[3,"51116","Держатель двухкомпонентный, д.16мм","шт",25,9,225,"ПР.М.4455000","Dkc"]
[4,"plc-fl-ctsw-2.5x200","Хомут P6.6 стандартный (б), 2.5x200 (100шт) FlexLock PROxima","уп",1,77,77,"ПР.М.4455000","Ekf"]
[5,"СЛБ-25","Саморез с прессшайбой 4,2х25 сверло","шт",30,2,60,"ПР.М.4455000","Mat"]
[6,"plc-pg-25","Сальник PG25 IP54 (100 шт) d отв. 30 мм / d провод. 16-21 мм EKF PROxima","шт",45,45,2025,"ПР.М.4455000","Ekf"]
[7,47482,"Нак-к кольцевой НКИ 6,0- 6 (КВТ)","шт",4,5,20,"ПР.М.44533","Mat"]
[8,"ПуГВ 1х6 жз (ПВ3 6 жз)","ПуГВ 1x6 жз Провод гибкий многожильный с ПВХ изоляцией 6 мм2 желто-зеленый","м",2,45,90,"ПР.М.44533","Mat"]
[9,"1013038","PATG 2/15 Держатель маркировки проводника","шт",6,5,30,"ПР.М.44533","Phoenix"]
[10,"0808260","PABL 15X4 Маркировочные полосы","лист",2,950,1900,"ПР.М.44533","Phoenix"]
[11,"kn-t-16","Коннектор для гофрированной трубы (16мм.) (50шт.) Plast EKFPROxima","шт",6,22,132,"ПР.М.44533","Ekf"]
[12,"43Б25У134Н","Бирка У-134 квадратная","шт",2,2,4,"ПР.М.44533","Iek"]
[13,null,null,null,null,null,0]
[14,null,null,null,null,null,0]
[15,null,null,null,null,null,0]
[16,null,null,null,null,null,0]
[17,null,null,null,null,null,0]
[18,null,null,null,null,null,0]
[19,null,null,null,null,null,0]
[20,null,null,null,null,null,0]
[21,null,null,null,null,null,0]
[22,null,null,null,null,null,0]
[23,null,null,null,null,null,0]
[24,null,null,null,null,null,0]
[25,null,null,null,null,null,0]
[26,null,null,null,null,null,0]
[27,null,null,null,null,null,0]
[28,null,null,null,null,null,0]
[29,null,null,null,null,null,0]
[30,null,null,null,null,null,0]
[31,null,null,null,null,null,0]
[32,null,null,null,null,null,0]
[33,null,null,null,null,null,0]
[34,null,null,null,null,null,0]
[35,null,null,null,null,null,0]
[36,null,null,null,null,null,0]
[37,null,null,null,null,null,0]
[38,null,null,null,null,null,0]
[39,null,null,null,null,null,0]
[40,null,null,null,null,null,0]
[41,null,null,null,null,null,0]
[42,null,null,null,null,null,0]
[43,null,null,null,null,null,0]
[44,null,null,null,null,null,0]
[45,null,null,null,null,null,0]
[46,null,null,null,null,null,0]
[47,null,null,null,null,null,0]
[48,null,null,null,null,null,0]
[49,null,null,null,null,null,0]
[50,null,null,null,null,null,0]
[51,null,null,null,null,null,0]
[52,null,null,null,null,null,0]
[53,null,null,null,null,null,0]
[54,null,null,null,null,null,0]
[55,null,null,null,null,null,0]
[56,null,null,null,null,null,0]
[57,null,null,null,null,null,0]
[58,null,null,null,null,null,0]
[59,null,null,null,null,null,0]
[60,null,null,null,null,null,0]
[61,null,null,null,null,null,0]
[62,null,null,null,null,null,0]
[63,null,null,null,null,null,0]
[64,null,null,null,null,null,0]
[65,null,null,null,null,null,0]
[66,null,null,null,null,null,{"$f":"E72*F72","v":0}]
[67,null,null,null,null,null,0]
[68,null,null,null,null,null,0]
[69,null,null,null,null,null,0]
[70,null,null,null,null,null,0]
[71,null,null,null,null,null,0]
[72,null,null,null,null,null,0]
[73,null,null,null,null,null,0]
[74,null,null,null,null,null,0]
[75,null,null,null,null,null,0]
[76,null,null,null,null,null,0]
[77,null,null,null,null,null,0]
[78,null,null,null,null,null,0]
[79,null,null,null,null,null,0]
[80,null,null,null,null,null,0]
[81,null,null,null,null,null,0]
[82,null,null,null,null,null,0]
[83,null,null,null,null,null,0]
[84,null,null,null,null,null,0]
[85,null,null,null,null,null,0]
[86,null,null,null,null,null,0]
[87,null,null,null,null,null,0]
[88,null,null,null,null,null,0]
[89,null,null,null,null,null,0]
[90,null,null,null,null,null,0]
[91,null,null,null,null,null,0]
[92,null,null,null,null,null,0]
[93,null,null,null,null,null,0]
[94,null,null,null,null,null,{"$f":"E100*F100","v":0}]
[95,null,null,null,null,null,0]
[96,null,null,null,null,null,0]
[97,null,null,null,null,null,0]
[98,null,null,null,null,null,0]
[99,null,null,null,null,null,0]
[100,null,null,null,null,null,0]
["End",null,"ИТОГО",null,null,null,{"$f":"SUM(G7:G106)","v":4893}]

{"sheet":"7","index":6,"n_rows":107,"n_cols":9,"rows_kept":107,"cut":false,"hidden":false,"merged":[]}
[]
[]
[]
[null,null,null,null,"USD","Курс USD ЦБ РФ",{"$f":"VLOOKUP(E4,RATE!B:E,4,FALSE)","v":75.537899999999993}]
[null,"Расчет",null,null,"EUR","Курс EUR ЦБ РФ",{"$f":"VLOOKUP(E5,RATE!B:E,4,FALSE)","v":89.225399999999993}]
["Start","Артикул","Наименование","Ед. изм.","Кол-во","Цена вход, руб без НДС","Сумма вход, руб без НДС","Шифр / Примечание","Произв / Пост"]
[1,"ВВГнг(А)-LS 3x1,5","Кабель силовой медный в ПВХ изоляции, LS-исполнения, нг-исполнения ВВГнг(А)-LS 3x1,5","м",6,35,{"$f":"E7*F7","v":210},"ПР.М.125К.11","Mat"]
[2,"tg-z-16","Труба гофр. ПВХ Plast с зондом d16мм (100м.) EKF PROxima","м",2,10,{"$f":"E8*F8","v":20},"ПР.М.125К.11","Ekf"]
[3,"51116","Держатель двухкомпонентный, д.16мм","шт",15,9,135,"ПР.М.125К.11","Dkc"]
[4,"plc-fl-ctsw-2.5x200","Хомут P6.6 стандартный (б), 2.5x200 (100шт) FlexLock PROxima","уп",1,77,77,"ПР.М.125К.11","Ekf"]
[5,"СЛБ-25","Саморез с прессшайбой 4,2х25 сверло","шт",33,2,66,"ПР.М.125К.11","Mat"]
[6,"plc-pg-25","Сальник PG25 IP54 (100 шт) d отв. 30 мм / d провод. 16-21 мм EKF PROxima","шт",2,45,90,"ПР.М.125К.11","Ekf"]
[7,47482,"Нак-к кольцевой НКИ 6,0- 6 (КВТ)","шт",4,5,20,"ПР.М.125К.11","Mat"]
[8,"ПуГВ 1х6 жз (ПВ3 6 жз)","ПуГВ 1x6 жз Провод гибкий многожильный с ПВХ изоляцией 6 мм2 желто-зеленый","м",5,45,225,"ПР.М.125К.11","Mat"]
[9,"1013038","PATG 2/15 Держатель маркировки проводника","шт",6,5,30,"ПР.М.125К.11","Phoenix"]
[10,"0808260","PABL 15X4 Маркировочные полосы","лист",0.1,950,95,"ПР.М.125К.11","Phoenix"]
[11,"kn-t-16","Коннектор для гофрированной трубы (16мм.) (50шт.) Plast EKFPROxima","шт",22,22,484,"ПР.М.125К.11","Ekf"]
[12,"43Б25У134Н","Бирка У-134 квадратная","шт",4,2,8,"ПР.М.125К.11","Iek"]
[13,null,null,null,null,null,0]
[14,null,null,null,null,null,0]
[15,null,null,null,null,null,0]
[16,null,null,null,null,null,0]
[17,null,null,null,null,null,0]
[18,null,null,null,null,null,0]
[19,null,null,null,null,null,0]
[20,null,null,null,null,null,0]
[21,null,null,null,null,null,0]
[22,null,null,null,null,null,0]
[23,null,null,null,null,null,0]
[24,null,null,null,null,null,0]
[25,null,null,null,null,null,0]
[26,null,null,null,null,null,0]
[27,null,null,null,null,null,0]
[28,null,null,null,null,null,0]
[29,null,null,null,null,null,0]
[30,null,null,null,null,null,0]
[31,null,null,null,null,null,0]
[32,null,null,null,null,null,0]
[33,null,null,null,null,null,0]
[34,null,null,null,null,null,0]
[35,null,null,null,null,null,0]
[36,null,null,null,null,null,0]
[37,null,null,null,null,null,0]
[38,null,null,null,null,null,0]
[39,null,null,null,null,null,0]
[40,null,null,null,null,null,0]
[41,null,null,null,null,null,0]
[42,null,null,null,null,null,0]
[43,null,null,null,null,null,0]
[44,null,null,null,null,null,0]
[45,null,null,null,null,null,0]
[46,null,null,null,null,null,0]
[47,null,null,null,null,null,0]
[48,null,null,null,null,null,0]
[49,null,null,null,null,null,0]
[50,null,null,null,null,null,0]
[51,null,null,null,null,null,0]
[52,null,null,null,null,null,0]
[53,null,null,null,null,null,0]
[54,null,null,null,null,null,0]
[55,null,null,null,null,null,0]
[56,null,null,null,null,null,0]
[57,null,null,null,null,null,0]
[58,null,null,null,null,null,0]
[59,null,null,null,null,null,0]
[60,null,null,null,null,null,0]
[61,null,null,null,null,null,0]
[62,null,null,null,null,null,0]
[63,null,null,null,null,null,0]
[64,null,null,null,null,null,0]
[65,null,null,null,null,null,0]
[66,null,null,null,null,null,{"$f":"E72*F72","v":0}]
[67,null,null,null,null,null,0]
[68,null,null,null,null,null,0]
[69,null,null,null,null,null,0]
[70,null,null,null,null,null,0]
[71,null,null,null,null,null,0]
[72,null,null,null,null,null,0]
[73,null,null,null,null,null,0]
[74,null,null,null,null,null,0]
[75,null,null,null,null,null,0]
[76,null,null,null,null,null,0]
[77,null,null,null,null,null,0]
[78,null,null,null,null,null,0]
[79,null,null,null,null,null,0]
[80,null,null,null,null,null,0]
[81,null,null,null,null,null,0]
[82,null,null,null,null,null,0]
[83,null,null,null,null,null,0]
[84,null,null,null,null,null,0]
[85,null,null,null,null,null,0]
[86,null,null,null,null,null,0]
[87,null,null,null,null,null,0]
[88,null,null,null,null,null,0]
[89,null,null,null,null,null,0]
[90,null,null,null,null,null,0]
[91,null,null,null,null,null,0]
[92,null,null,null,null,null,0]
[93,null,null,null,null,null,0]
[94,null,null,null,null,null,{"$f":"E100*F100","v":0}]
[95,null,null,null,null,null,0]
[96,null,null,null,null,null,0]
[97,null,null,null,null,null,0]
[98,null,null,null,null,null,0]
[99,null,null,null,null,null,0]
[100,null,null,null,null,null,0]
["End",null,"ИТОГО",null,null,null,{"$f":"SUM(G7:G106)","v":1460}]

{"sheet":"8","index":7,"n_rows":107,"n_cols":9,"rows_kept":107,"cut":false,"hidden":false,"merged":[]}
[]
[]
[]
[null,null,null,null,"USD","Курс USD ЦБ РФ",{"$f":"VLOOKUP(E4,RATE!B:E,4,FALSE)","v":75.537899999999993}]
[null,"Расчет",null,null,"EUR","Курс EUR ЦБ РФ",{"$f":"VLOOKUP(E5,RATE!B:E,4,FALSE)","v":89.225399999999993}]
["Start","Артикул","Наименование","Ед. изм.","Кол-во","Цена вход, руб без НДС","Сумма вход, руб без НДС","Шифр / Примечание","Произв / Пост"]
[1,"ВВГнг(А)-LS 3x1,5","Кабель силовой медный в ПВХ изоляции, LS-исполнения, нг-исполнения ВВГнг(А)-LS 3x1,5","м",6,35,{"$f":"E7*F7","v":210},"ПР.М.00000","Mat"]
[2,"tg-z-16","Труба гофр. ПВХ Plast с зондом d16мм (100м.) EKF PROxima","м",6,10,{"$f":"E8*F8","v":60},"ПР.М.00000","Ekf"]
[3,"51116","Держатель двухкомпонентный, д.16мм","шт",34,9,306,"ПР.М.00000","Dkc"]
[4,"plc-fl-ctsw-2.5x200","Хомут P6.6 стандартный (б), 2.5x200 (100шт) FlexLock PROxima","уп",2,77,154,"ПР.М.00000","Ekf"]
[5,"СЛБ-25","Саморез с прессшайбой 4,2х25 сверло","шт",30,2,60,"ПР.М.00000","Mat"]
[6,"plc-pg-25","Сальник PG25 IP54 (100 шт) d отв. 30 мм / d провод. 16-21 мм EKF PROxima","шт",2,45,90,"ПР.М.00000","Ekf"]
[7,47482,"Нак-к кольцевой НКИ 6,0- 6 (КВТ)","шт",4,5,20,"ПР.М.00000","Mat"]
[8,"ПуГВ 1х6 жз (ПВ3 6 жз)","ПуГВ 1x6 жз Провод гибкий многожильный с ПВХ изоляцией 6 мм2 желто-зеленый","м",2,45,90,"ПР.М.00000","Mat"]
[9,"1013038","PATG 2/15 Держатель маркировки проводника","шт",6,5,30,"ПР.М.00000","Phoenix"]
[10,"0808260","PABL 15X4 Маркировочные полосы","лист",4,950,3800,"ПР.М.00000","Phoenix"]
[11,"kn-t-16","Коннектор для гофрированной трубы (16мм.) (50шт.) Plast EKFPROxima","шт",4,22,88,"ПР.М.00000","Ekf"]
[12,"43Б25У134Н","Бирка У-134 квадратная","шт",2,2,4,"ПР.М.00000","Iek"]
[13,null,null,null,null,null,0]
[14,null,null,null,null,null,0]
[15,null,null,null,null,null,0]
[16,null,null,null,null,null,0]
[17,null,null,null,null,null,0]
[18,null,null,null,null,null,0]
[19,null,null,null,null,null,0]
[20,null,null,null,null,null,0]
[21,null,null,null,null,null,0]
[22,null,null,null,null,null,0]
[23,null,null,null,null,null,0]
[24,null,null,null,null,null,0]
[25,null,null,null,null,null,0]
[26,null,null,null,null,null,0]
[27,null,null,null,null,null,0]
[28,null,null,null,null,null,0]
[29,null,null,null,null,null,0]
[30,null,null,null,null,null,0]
[31,null,null,null,null,null,0]
[32,null,null,null,null,null,0]
[33,null,null,null,null,null,0]
[34,null,null,null,null,null,0]
[35,null,null,null,null,null,0]
[36,null,null,null,null,null,0]
[37,null,null,null,null,null,0]
[38,null,null,null,null,null,0]
[39,null,null,null,null,null,0]
[40,null,null,null,null,null,0]
[41,null,null,null,null,null,0]
[42,null,null,null,null,null,0]
[43,null,null,null,null,null,0]
[44,null,null,null,null,null,0]
[45,null,null,null,null,null,0]
[46,null,null,null,null,null,0]
[47,null,null,null,null,null,0]
[48,null,null,null,null,null,0]
[49,null,null,null,null,null,0]
[50,null,null,null,null,null,0]
[51,null,null,null,null,null,0]
[52,null,null,null,null,null,0]
[53,null,null,null,null,null,0]
[54,null,null,null,null,null,0]
[55,null,null,null,null,null,0]
[56,null,null,null,null,null,0]
[57,null,null,null,null,null,0]
[58,null,null,null,null,null,0]
[59,null,null,null,null,null,0]
[60,null,null,null,null,null,0]
[61,null,null,null,null,null,0]
[62,null,null,null,null,null,0]
[63,null,null,null,null,null,0]
[64,null,null,null,null,null,0]
[65,null,null,null,null,null,0]
[66,null,null,null,null,null,{"$f":"E72*F72","v":0}]
[67,null,null,null,null,null,0]
[68,null,null,null,null,null,0]
[69,null,null,null,null,null,0]
[70,null,null,null,null,null,0]
[71,null,null,null,null,null,0]
[72,null,null,null,null,null,0]
[73,null,null,null,null,null,0]
[74,null,null,null,null,null,0]
[75,null,null,null,null,null,0]
[76,null,null,null,null,null,0]
[77,null,null,null,null,null,0]
[78,null,null,null,null,null,0]
[79,null,null,null,null,null,0]
[80,null,null,null,null,null,0]
[81,null,null,null,null,null,0]
[82,null,null,null,null,null,0]
[83,null,null,null,null,null,0]
[84,null,null,null,null,null,0]
[85,null,null,null,null,null,0]
[86,null,null,null,null,null,0]
[87,null,null,null,null,null,0]
[88,null,null,null,null,null,0]
[89,null,null,null,null,null,0]
[90,null,null,null,null,null,0]
[91,null,null,null,null,null,0]
[92,null,null,null,null,null,0]
[93,null,null,null,null,null,0]
[94,null,null,null,null,null,{"$f":"E100*F100","v":0}]
[95,null,null,null,null,null,0]
[96,null,null,null,null,null,0]
[97,null,null,null,null,null,0]
[98,null,null,null,null,null,0]
[99,null,null,null,null,null,0]
[100,null,null,null,null,null,0]
["End",null,"ИТОГО",null,null,null,{"$f":"SUM(G7:G106)","v":4912}]

{"sheet":"9","index":8,"n_rows":107,"n_cols":9,"rows_kept":107,"cut":false,"hidden":false,"merged":[]}
[]
[]
[]
[null,null,null,null,"USD","Курс USD ЦБ РФ",{"$f":"VLOOKUP(E4,RATE!B:E,4,FALSE)","v":75.537899999999993}]
[null,"Расчет",null,null,"EUR","Курс EUR ЦБ РФ",{"$f":"VLOOKUP(E5,RATE!B:E,4,FALSE)","v":89.225399999999993}]
["Start","Артикул","Наименование","Ед. изм.","Кол-во","Цена вход, руб без НДС","Сумма вход, руб без НДС","Шифр / Примечание","Произв / Пост"]
[1,"ВВГнг(А)-LS 3x1,5","Кабель силовой медный в ПВХ изоляции, LS-исполнения, нг-исполнения ВВГнг(А)-LS 3x1,5","м",8,35,{"$f":"E7*F7","v":280},"ПР.М.ОТ.ПР.2233","Mat"]
[2,"tg-z-16","Труба гофр. ПВХ Plast с зондом d16мм (100м.) EKF PROxima","м",6,10,{"$f":"E8*F8","v":60},"ПР.М.ОТ.ПР.2233","Ekf"]
[3,"51116","Держатель двухкомпонентный, д.16мм","шт",10,9,90,"ПР.М.ОТ.ПР.2233","Dkc"]
[4,"plc-fl-ctsw-2.5x200","Хомут P6.6 стандартный (б), 2.5x200 (100шт) FlexLock PROxima","уп",8,77,616,"ПР.М.ОТ.ПР.2233","Ekf"]
[5,"СЛБ-25","Саморез с прессшайбой 4,2х25 сверло","шт",30,2,60,"ПР.М.ОТ.ПР.2233","Mat"]
[6,"plc-pg-25","Сальник PG25 IP54 (100 шт) d отв. 30 мм / d провод. 16-21 мм EKF PROxima","шт",4,45,180,"ПР.М.ОТ.ПР.2233","Ekf"]
[7,47482,"Нак-к кольцевой НКИ 6,0- 6 (КВТ)","шт",4,5,20,"ПР.М.ОТ.ПР.2233","Mat"]
[8,"ПуГВ 1х6 жз (ПВ3 6 жз)","ПуГВ 1x6 жз Провод гибкий многожильный с ПВХ изоляцией 6 мм2 желто-зеленый","м",6,45,270,"ПР.М.ОТ.ПР.2233","Mat"]
[9,"1013038","PATG 2/15 Держатель маркировки проводника","шт",6,5,30,"ПР.М.ОТ.ПР.2233","Phoenix"]
[10,"0808260","PABL 15X4 Маркировочные полосы","лист",3,950,2850,"ПР.М.ОТ.ПР.2233","Phoenix"]
[11,"kn-t-16","Коннектор для гофрированной трубы (16мм.) (50шт.) Plast EKFPROxima","шт",4,22,88,"ПР.М.ОТ.ПР.2233","Ekf"]
[12,"43Б25У134Н","Бирка У-134 квадратная","шт",5,2,10,"ПР.М.ОТ.ПР.2233","Iek"]
[13,null,null,null,null,null,0]
[14,null,null,null,null,null,0]
[15,null,null,null,null,null,0]
[16,null,null,null,null,null,0]
[17,null,null,null,null,null,0]
[18,null,null,null,null,null,0]
[19,null,null,null,null,null,0]
[20,null,null,null,null,null,0]
[21,null,null,null,null,null,0]
[22,null,null,null,null,null,0]
[23,null,null,null,null,null,0]
[24,null,null,null,null,null,0]
[25,null,null,null,null,null,0]
[26,null,null,null,null,null,0]
[27,null,null,null,null,null,0]
[28,null,null,null,null,null,0]
[29,null,null,null,null,null,0]
[30,null,null,null,null,null,0]
[31,null,null,null,null,null,0]
[32,null,null,null,null,null,0]
[33,null,null,null,null,null,0]
[34,null,null,null,null,null,0]
[35,null,null,null,null,null,0]
[36,null,null,null,null,null,0]
[37,null,null,null,null,null,0]
[38,null,null,null,null,null,0]
[39,null,null,null,null,null,0]
[40,null,null,null,null,null,0]
[41,null,null,null,null,null,0]
[42,null,null,null,null,null,0]
[43,null,null,null,null,null,0]
[44,null,null,null,null,null,0]
[45,null,null,null,null,null,0]
[46,null,null,null,null,null,0]
[47,null,null,null,null,null,0]
[48,null,null,null,null,null,0]
[49,null,null,null,null,null,0]
[50,null,null,null,null,null,0]
[51,null,null,null,null,null,0]
[52,null,null,null,null,null,0]
[53,null,null,null,null,null,0]
[54,null,null,null,null,null,0]
[55,null,null,null,null,null,0]
[56,null,null,null,null,null,0]
[57,null,null,null,null,null,0]
[58,null,null,null,null,null,0]
[59,null,null,null,null,null,0]
[60,null,null,null,null,null,0]
[61,null,null,null,null,null,0]
[62,null,null,null,null,null,0]
[63,null,null,null,null,null,0]
[64,null,null,null,null,null,0]
[65,null,null,null,null,null,0]
[66,null,null,null,null,null,{"$f":"E72*F72","v":0}]
[67,null,null,null,null,null,0]
[68,null,null,null,null,null,0]
[69,null,null,null,null,null,0]
[70,null,null,null,null,null,0]
[71,null,null,null,null,null,0]
[72,null,null,null,null,null,0]
[73,null,null,null,null,null,0]
[74,null,null,null,null,null,0]
[75,null,null,null,null,null,0]
[76,null,null,null,null,null,0]
[77,null,null,null,null,null,0]
[78,null,null,null,null,null,0]
[79,null,null,null,null,null,0]
[80,null,null,null,null,null,0]
[81,null,null,null,null,null,0]
[82,null,null,null,null,null,0]
[83,null,null,null,null,null,0]
[84,null,null,null,null,null,0]
[85,null,null,null,null,null,0]
[86,null,null,null,null,null,0]
[87,null,null,null,null,null,0]
[88,null,null,null,null,null,0]
[89,null,null,null,null,null,0]
[90,null,null,null,null,null,0]
[91,null,null,null,null,null,0]
[92,null,null,null,null,null,0]
[93,null,null,null,null,null,0]
[94,null,null,null,null,null,{"$f":"E100*F100","v":0}]
[95,null,null,null,null,null,0]
[96,null,null,null,null,null,0]
[97,null,null,null,null,null,0]
[98,null,null,null,null,null,0]
[99,null,null,null,null,null,0]
[100,null,null,null,null,null,0]
["End",null,"ИТОГО",null,null,null,{"$f":"SUM(G7:G106)","v":4554}]

{"sheet":"10","index":9,"n_rows":107,"n_cols":9,"rows_kept":107,"cut":false,"hidden":false,"merged":[]}
[]
[]
[]
[null,null,null,null,"USD","Курс USD ЦБ РФ",{"$f":"VLOOKUP(E4,RATE!B:E,4,FALSE)","v":75.537899999999993}]
[null,"Расчет",null,null,"EUR","Курс EUR ЦБ РФ",{"$f":"VLOOKUP(E5,RATE!B:E,4,FALSE)","v":89.225399999999993}]
["Start","Артикул","Наименование","Ед. изм.","Кол-во","Цена вход, руб без НДС","Сумма вход, руб без НДС","Шифр / Примечание","Произв / Пост"]
[1,"ВВГнг(А)-LS 3x1,5","Кабель силовой медный в ПВХ изоляции, LS-исполнения, нг-исполнения ВВГнг(А)-LS 3x1,5","м",9,35,{"$f":"E7*F7","v":315},"ПР.М.12МММ","Mat"]
[2,"tg-z-16","Труба гофр. ПВХ Plast с зондом d16мм (100м.) EKF PROxima","м",8,10,{"$f":"E8*F8","v":80},"ПР.М.12МММ","Ekf"]
[3,"51116","Держатель двухкомпонентный, д.16мм","шт",14,9,126,"ПР.М.12МММ","Dkc"]
[4,"plc-fl-ctsw-2.5x200","Хомут P6.6 стандартный (б), 2.5x200 (100шт) FlexLock PROxima","уп",3,77,231,"ПР.М.12МММ","Ekf"]
[5,"СЛБ-25","Саморез с прессшайбой 4,2х25 сверло","шт",44,2,88,"ПР.М.12МММ","Mat"]
[6,"plc-pg-25","Сальник PG25 IP54 (100 шт) d отв. 30 мм / d провод. 16-21 мм EKF PROxima","шт",5,45,225,"ПР.М.122526","Ekf"]
[7,47482,"Нак-к кольцевой НКИ 6,0- 6 (КВТ)","шт",7,5,35,"ПР.М.122526","Mat"]
[8,"ПуГВ 1х6 жз (ПВ3 6 жз)","ПуГВ 1x6 жз Провод гибкий многожильный с ПВХ изоляцией 6 мм2 желто-зеленый","м",5,45,225,"ПР.М.122526","Mat"]
[9,"1013038","PATG 2/15 Держатель маркировки проводника","шт",8,5,40,"ПР.М.122526","Phoenix"]
[10,"0808260","PABL 15X4 Маркировочные полосы","лист",3,950,2850,"ПР.М.122526","Phoenix"]
[11,"kn-t-16","Коннектор для гофрированной трубы (16мм.) (50шт.) Plast EKFPROxima","шт",8,22,176,"ПР.М.122526","Ekf"]
[12,"43Б25У134Н","Бирка У-134 квадратная","шт",3,2,6,"ПР.М.122526","Iek"]
[13,null,null,null,null,null,0]
[14,null,null,null,null,null,0]
[15,null,null,null,null,null,0]
[16,null,null,null,null,null,0]
[17,null,null,null,null,null,0]
[18,null,null,null,null,null,0]
[19,null,null,null,null,null,0]
[20,null,null,null,null,null,0]
[21,null,null,null,null,null,0]
[22,null,null,null,null,null,0]
[23,null,null,null,null,null,0]
[24,null,null,null,null,null,0]
[25,null,null,null,null,null,0]
[26,null,null,null,null,null,0]
[27,null,null,null,null,null,0]
[28,null,null,null,null,null,0]
[29,null,null,null,null,null,0]
[30,null,null,null,null,null,0]
[31,null,null,null,null,null,0]
[32,null,null,null,null,null,0]
[33,null,null,null,null,null,0]
[34,null,null,null,null,null,0]
[35,null,null,null,null,null,0]
[36,null,null,null,null,null,0]
[37,null,null,null,null,null,0]
[38,null,null,null,null,null,0]
[39,null,null,null,null,null,0]
[40,null,null,null,null,null,0]
[41,null,null,null,null,null,0]
[42,null,null,null,null,null,0]
[43,null,null,null,null,null,0]
[44,null,null,null,null,null,0]
[45,null,null,null,null,null,0]
[46,null,null,null,null,null,0]
[47,null,null,null,null,null,0]
[48,null,null,null,null,null,0]
[49,null,null,null,null,null,0]
[50,null,null,null,null,null,0]
[51,null,null,null,null,null,0]
[52,null,null,null,null,null,0]
[53,null,null,null,null,null,0]
[54,null,null,null,null,null,0]
[55,null,null,null,null,null,0]
[56,null,null,null,null,null,0]
[57,null,null,null,null,null,0]
[58,null,null,null,null,null,0]
[59,null,null,null,null,null,0]
[60,null,null,null,null,null,0]
[61,null,null,null,null,null,0]
[62,null,null,null,null,null,0]
[63,null,null,null,null,null,0]
[64,null,null,null,null,null,0]
[65,null,null,null,null,null,0]
[66,null,null,null,null,null,{"$f":"E72*F72","v":0}]
[67,null,null,null,null,null,0]
[68,null,null,null,null,null,0]
[69,null,null,null,null,null,0]
[70,null,null,null,null,null,0]
[71,null,null,null,null,null,0]
[72,null,null,null,null,null,0]
[73,null,null,null,null,null,0]
[74,null,null,null,null,null,0]
[75,null,null,null,null,null,0]
[76,null,null,null,null,null,0]
[77,null,null,null,null,null,0]
[78,null,null,null,null,null,0]
[79,null,null,null,null,null,0]
[80,null,null,null,null,null,0]
[81,null,null,null,null,null,0]
[82,null,null,null,null,null,0]
[83,null,null,null,null,null,0]
[84,null,null,null,null,null,0]
[85,null,null,null,null,null,0]
[86,null,null,null,null,null,0]
[87,null,null,null,null,null,0]
[88,null,null,null,null,null,0]
[89,null,null,null,null,null,0]
[90,null,null,null,null,null,0]
[91,null,null,null,null,null,0]
[92,null,null,null,null,null,0]
[93,null,null,null,null,null,0]
[94,null,null,null,null,null,{"$f":"E100*F100","v":0}]
[95,null,null,null,null,null,0]
[96,null,null,null,null,null,0]
[97,null,null,null,null,null,0]
[98,null,null,null,null,null,0]
[99,null,null,null,null,null,0]
[100,null,null,null,null,null,0]
["End",null,"ИТОГО",null,null,null,{"$f":"SUM(G7:G106)","v":4397}]

{"sheet":"end","index":10,"n_rows":0,"n_cols":0,"rows_kept":0,"cut":false,"hidden":false,"merged":[]}

{"sheet":"RATE","index":11,"n_rows":89,"n_cols":5,"rows_kept":89,"cut":false,"hidden":false,"merged":[]}
["cbr"]
[]
["ул. Неглинная, 12, Москва, 107016"]
["8 800 300-30-00"]
["www.cbr.ru"]
[]
["Поиск по сайту "]
["Интернет-приемная"]
["RU"]
["EN"]
["Поиск по сайту "]
["Интернет-приемная"]
["RU"]
["EN"]
["Что вы хотите найти?"]
["Искать"]
["Деятельность Документы и данные О Банке России Сервисы"]
["Коронавирус: поддержка экономики, бизнеса, граждан"]
["+"]
["7 499 300-30-008 800 300-30-00300Бесплатно для звонков с мобильных телефонов"]
["Новости Решения Банка России Контактная информация Карта сайта О сайте"]
["Базы данных"]
["База данных по курсам валют"]
[]
["Официальные курсы валют на заданную дату, устанавливаемые ежедневно"]
[]
["2020-08-27"]
[]
["Центральный банк Российской Федерации установил с 27.08.2020 следующие курсы иностранных валют к рублю Российской Федерации без обязательств Банка России покупать или продавать указанные валюты по данному курсу"]
[]
["Цифр. код","Букв. код","Единиц","Валюта","Курс"]
[36,"AUD",1,"Австралийский доллар",54.3797]
[944,"AZN",1,"Азербайджанский манат",44.4602]
[51,"AMD",100,"Армянских драмов",15.5396]
[933,"BYN",1,"Белорусский рубль",28.508099999999999]
[975,"BGN",1,"Болгарский лев",45.6312]
[986,"BRL",1,"Бразильский реал",13.7117]
[348,"HUF",100,"Венгерских форинтов",25.249199999999998]
[410,"KRW",1000,"Вон Республики Корея",63.663400000000003]
[344,"HKD",10,"Гонконгских долларов",97.465699999999998]
[208,"DKK",1,"Датская крона",11.988]
[840,"USD",1,"Доллар США",75.537899999999993]
[978,"EUR",1,"Евро",89.225399999999993]
[356,"INR",10,"Индийских рупий",10.166600000000001]
[398,"KZT",100,"Казахстанских тенге",17.9878]
[124,"CAD",1,"Канадский доллар",57.316899999999997]
[417,"KGS",100,"Киргизских сомов",96.873900000000006]
[156,"CNY",1,"Китайский юань",10.960100000000001]
[498,"MDL",10,"Молдавских леев",45.313699999999997]
[934,"TMT",1,"Новый туркменский манат",21.613099999999999]
[578,"NOK",10,"Норвежских крон",84.3095]
[985,"PLN",1,"Польский злотый",20.2895]
[946,"RON",1,"Румынский лей",18.4405]
[960,"XDR",1,"СДР (специальные права заимствования)",106.6361]
[702,"SGD",1,"Сингапурский доллар",55.209699999999998]
[972,"TJS",10,"Таджикских сомони",73.231099999999998]
[949,"TRY",1,"Турецкая лира",10.269]
[860,"UZS",10000,"Узбекских сумов",73.603099999999998]
[980,"UAH",10,"Украинских гривен",27.5761]
[826,"GBP",1,"Фунт стерлингов Соединенного королевства",99.332300000000004]
[203,"CZK",10,"Чешских крон",34.045999999999999]
[752,"SEK",10,"Шведских крон",86.182299999999998]
[756,"CHF",1,"Швейцарский франк",83.008700000000005]
[710,"ZAR",10,"Южноафриканских рэндов",44.9221]
[392,"JPY",100,"Японских иен",71.104500000000002]
["Страница была полезной?"]
["Да Нет"]
["Последнее обновление страницы: 26.08.2020"]
["Наверх"]
["ул. Неглинная, 12, Москва, 107016"]
["8 800 300-30-00(круглосуточно, бесплатно для звонков из регионов России)"]
["+7 499 300-30-00(круглосуточно, в соответствии с тарифами вашего оператора)"]
["300(круглосуточно, бесплатно для звонков с мобильных телефонов)"]
["Личный кабинет участников рынка"]
["Отношения с инвесторами"]
["Перечень инсайдерской информации Банка России"]
["Официальное опубликование нормативных актов Банка России"]
["Проекты нормативных актов Банка России"]
["Перечень нерабочих праздничных дней и перенесенных выходных дней"]
["О сайте"]
["Контакты"]
["Противодействие коррупции"]
["Технические ресурсы"]
["Версия для слабовидящихОбычная версия"]
["© Банк России, 2000–2020."]
["Дизайн сайта — "]
["На сайте Банка России используются файлы cookie"]
["Оставаясь на www.cbr.ru, вы принимаете пользовательское соглашение"]
["Подтвердить"]

{"sheet":"SPEC","index":12,"n_rows":6,"n_cols":9,"rows_kept":6,"cut":false,"hidden":false,"merged":[]}
[]
[]
[]
[null,null,null,null,"USD","Курс USD ЦБ РФ",{"$f":"VLOOKUP(E4,RATE!B:E,4,FALSE)","v":75.537899999999993}]
[null,"Расчет",null,null,"EUR","Курс EUR ЦБ РФ",{"$f":"VLOOKUP(E5,RATE!B:E,4,FALSE)","v":89.225399999999993}]
["№","Артикул","Наименование","Ед. изм.","Кол-во","Цена вход, руб без НДС","Сумма вход, руб без НДС","Шифр / Примечание","Произв / Пост"]